fUST/lending_fUST_20250419
["ID","MTS","AMOUNT","RATE_DAILY","PERIOD"]
[358372592,1745009448607,-1000.0,0.00022,14]
[358372593,1745009448618,-1000.0,0.00022,14]
[358372594,1745009448627,-1000.0,0.00022,14]
[358372595,1745009448743,-1000.0,0.00022,14]
[358372596,1745009448767,-1000.0,0.00022,14]
[358372597,1745009448777,-1000.0,0.00022,14]
[358372598,1745009448788,-1000.0,0.00022,14]
[358372599,1745009448797,-1000.0,0.00022,14]
[358372600,1745009448807,-1000.0,0.00022,14]
[358372601,1745009448817,-1000.0,0.00022,14]
[358372602,1745009448826,-1000.0,0.00022,14]
[358372603,1745009448836,-1000.0,0.00022,14]
[358372604,1745009448846,-1000.0,0.00022,14]
[358372605,1745009448855,-1000.0,0.00022,14]
[358372606,1745009448865,-1000.0,0.00022,14]
[358372607,1745009448877,-1000.0,0.00022,14]
[358372608,1745009448887,-1000.0,0.00022,14]
[358372609,1745009448896,-1000.0,0.00022,14]
[358372610,1745009448906,-1000.0,0.00022,14]
[358372611,1745009448916,-1000.0,0.00022,14]
[358372612,1745009448926,-1000.0,0.00022,14]
[358372613,1745009448935,-1000.0,0.00022,14]
[358372614,1745009448945,-665.867713,0.00022,14]
[358372615,1745009448954,-151.0,0.00022,7]
[358372616,1745009448965,-151.0,0.00022,7]
[358372617,1745009448975,-151.0,0.00022,7]
[358372618,1745009448985,-151.0,0.00022,7]
[358372619,1745009448994,-151.0,0.00022,7]
[358372620,1745009449004,-151.0,0.00022,7]
[358372621,1745009449014,-151.0,0.00022,7]
[358372622,1745009449024,-158.89045502,0.00022019,2]
[358372623,1745009449035,-151.0,0.00022019,2]
[358372624,1745009449045,-198.0,0.00022019,2]
[358372625,1745009449054,-587.0,0.00022067,2]
[358372626,1745009449064,-291.07914284,0.000221,2]
[358372627,1745009449074,-500.0,0.00022121,2]
[358372628,1745009449084,-160.0,0.00022138,7]
[358372629,1745009449093,-220.12324801,0.00022173,2]
[358372630,1745009449103,-500.0,0.00022173,2]
[358372631,1745009449113,-500.0,0.00022173,2]
[358372632,1745009449123,-500.0,0.00022173,2]
[358372633,1745009449133,-153.87683001,0.00022173,2]
[358372634,1745009449143,-500.0,0.00022173,2]
[358372635,1745009449153,-541.81345799,0.00022173,2]
[358372636,1745009449162,-500.0,0.00022173,2]
[358372637,1745009449172,-500.0,0.00022173,2]
[358372638,1745009449181,-500.0,0.00022173,2]
[358372639,1745009449190,-500.0,0.00022173,2]
[358372640,1745009449200,-500.0,0.00022173,2]
[358372641,1745009449210,-151.0,0.00022173,7]
[358372642,1745009449220,-151.0,0.00022173,7]
[358372643,1745009449229,-809.251229,0.00022173,7]
[358372644,1745009449239,-460.437239,0.00022173,2]
[358372645,1745009449251,-160.0,0.00022182,7]
[358372646,1745009449261,-197.793978,0.00022182,7]
[358372647,1745009449272,-151.0,0.00022182,7]
[358372648,1745009449282,-204.0,0.0002219,2]
[358372649,1745009449291,-12500.0,0.00022191,2]
[358372650,1745009449300,-183.79725017,0.00022191,2]
[358372651,1745009449310,-500.0,0.00022191,2]
[358372652,1745009449319,-497.78565677,0.00022191,2]
[358372653,1745009449329,-500.0,0.00022191,2]
[358372654,1745009449339,-500.0,0.00022191,2]
[358372655,1745009449349,-665.17,0.00022191,2]
[358372656,1745009449359,-500.0,0.00022191,2]
[358372657,1745009449368,-500.0,0.00022191,2]
[358372658,1745009449377,-593.98,0.00022191,2]
[358372659,1745009449387,-500.0,0.00022191,2]
[358372660,1745009449396,-500.0,0.00022191,2]
[358372661,1745009449406,-642.14869934,0.00022191,2]
[358372662,1745009449416,-500.0,0.00022191,2]
[358372663,1745009449426,-500.0,0.00022191,2]
[358372664,1745009449435,-992.67,0.00022191,2]
[358372665,1745009449445,-500.0,0.00022191,2]
[358372666,1745009449455,-500.0,0.00022191,2]
[358372667,1745009449465,-500.0,0.00022191,2]
[358372668,1745009449474,-500.0,0.00022191,2]
[358372669,1745009449483,-500.0,0.00022191,2]
[358372670,1745009449494,-500.0,0.00022191,2]
[358372671,1745009449504,-500.0,0.00022191,2]
[358372672,1745009449513,-500.0,0.00022191,2]
[358372673,1745009449523,-500.32,0.00022191,2]
[358372674,1745009449532,-500.0,0.00022191,2]
[358372675,1745009449542,-500.0,0.00022191,2]
[358372676,1745009449551,-500.0,0.00022191,2]
[358372677,1745009449561,-500.0,0.00022191,2]
[358372678,1745009449571,-500.0,0.00022191,2]
[358372679,1745009449581,-500.0,0.00022191,2]
[358372680,1745009449590,-500.0,0.00022191,2]
[358372681,1745009449600,-500.0,0.00022191,2]
[358372682,1745009449609,-589.9,0.00022191,2]
[358372683,1745009449619,-500.0,0.00022191,2]
[358372684,1745009449630,-502.54296332,0.00022191,2]
[358372685,1745009449640,-506.29,0.00022191,2]
[358372686,1745009449649,-168.93836327,0.00022191,2]
[358372687,1745009449658,-502.34286157,0.00022191,2]
[358372688,1745009449667,-535.28,0.00022191,2]
[358372689,1745009449677,-500.0,0.00022191,2]
[358372690,1745009449686,-500.0,0.00022191,2]
[358372691,1745009449696,-500.0,0.00022191,2]
[358372692,1745009449705,-500.0,0.00022191,2]
[358372693,1745009449716,-500.0,0.00022191,2]
[358372694,1745009449726,-251.4899229,0.00022191,2]
[358372695,1745009449735,-1194.78,0.00022191,2]
[358372696,1745009449745,-503.37010228,0.00022191,2]
[358372697,1745009449755,-500.0,0.00022191,2]
[358372698,1745009449764,-500.0,0.00022191,2]
[358372699,1745009449774,-500.0,0.00022191,2]
[358372700,1745009449783,-500.0,0.00022191,2]
[358372701,1745009449793,-500.0,0.00022191,2]
[358372702,1745009449803,-500.0,0.00022191,2]
[358372703,1745009449813,-500.0,0.00022191,2]
[358372704,1745009449822,-500.0,0.00022191,2]
[358372705,1745009449832,-500.0,0.00022191,2]
[358372706,1745009449842,-500.0,0.00022191,2]
[358372707,1745009449851,-500.0,0.00022191,2]
[358372708,1745009449861,-500.0,0.00022191,2]
[358372709,1745009449871,-500.0,0.00022191,2]
[358372710,1745009449882,-760.06,0.00022191,2]
[358372711,1745009449892,-500.0,0.00022191,2]
[358372712,1745009449901,-500.0,0.00022191,2]
[358372713,1745009449911,-500.0,0.00022191,2]
[358372714,1745009449921,-500.0,0.00022191,2]
[358372715,1745009449930,-500.0,0.00022191,2]
[358372716,1745009449939,-500.0,0.00022191,2]
[358372717,1745009449949,-500.0,0.00022191,2]
[358372718,1745009449958,-500.0,0.00022191,2]
[358372719,1745009449968,-500.0,0.00022191,2]
[358372720,1745009449979,-500.0,0.00022191,2]
[358372721,1745009449988,-500.0,0.00022191,2]
[358372722,1745009449998,-784.04,0.00022191,2]
[358372723,1745009450008,-500.0,0.00022191,2]
[358372724,1745009450018,-940.13,0.00022191,2]
[358372725,1745009450027,-502.20268789,0.00022191,2]
[358372726,1745009450036,-249.40485461,0.00022191,2]
[358372727,1745009450046,-516.06,0.00022191,2]
[358372728,1745009450056,-500.0,0.00022191,2]
[358372729,1745009450065,-500.0,0.00022191,2]
[358372730,1745009450075,-546.69,0.00022191,2]
[358372731,1745009450084,-500.0,0.00022191,2]
[358372732,1745009450094,-500.0,0.00022191,2]
[358372733,1745009450103,-500.0,0.00022191,2]
[358372734,1745009450113,-500.0,0.00022191,2]
[358372735,1745009450122,-500.0,0.00022191,2]
[358372736,1745009450132,-500.0,0.00022191,2]
[358372737,1745009450142,-500.0,0.00022191,2]
[358372738,1745009450152,-883.11,0.00022191,2]
[358372739,1745009450162,-571.08,0.00022191,2]
[358372740,1745009450171,-823.6,0.00022191,2]
[358372741,1745009450181,-500.0,0.00022191,2]
[358372742,1745009450190,-500.0,0.00022191,2]
[358372743,1745009450201,-560.70487709,0.00022191,2]
[358372744,1745009450211,-500.60061735,0.00022191,2]
[358372745,1745009450221,-181.62315,0.00022191,7]
[358372746,1745009450231,-1201.12,0.00022191,2]
[358372747,1745009450240,-500.0,0.00022191,2]
[358372748,1745009450251,-500.0,0.00022191,2]
[358372749,1745009450260,-500.0,0.00022191,2]
[358372750,1745009450270,-505.61873869,0.00022191,2]
[358372751,1745009450279,-500.0,0.00022191,2]
[358372752,1745009450289,-500.0,0.00022191,2]
[358372753,1745009450298,-500.0,0.00022191,2]
[358372754,1745009450309,-1706.69,0.00022191,2]
[358372755,1745009450319,-1084.49,0.00022191,2]
[358372756,1745009450330,-500.0,0.00022191,2]
[358372757,1745009450341,-500.0,0.00022191,2]
[358372758,1745009450351,-878.67,0.00022191,2]
[358372759,1745009450361,-500.0,0.00022191,2]
[358372760,1745009450371,-500.0,0.00022191,2]
[358372761,1745009450381,-888.77,0.00022191,2]
[358372762,1745009450390,-500.0,0.00022191,2]
[358372763,1745009450399,-500.0,0.00022191,2]
[358372764,1745009450409,-500.0,0.00022191,2]
[358372765,1745009450418,-578.92856435,0.00022191,2]
[358372766,1745009450428,-500.0,0.00022191,2]
[358372767,1745009450437,-501.73991393,0.00022191,2]
[358372768,1745009450447,-520.89,0.00022191,2]
[358372769,1745009450456,-627.32,0.00022191,2]
[358372770,1745009450466,-500.0,0.00022191,2]
[358372771,1745009450475,-500.0,0.00022191,2]
[358372772,1745009450485,-500.0,0.00022191,2]
[358372773,1745009450494,-151.0,0.00022191,7]
[358372774,1745009450504,-500.0,0.00022191,2]
[358372775,1745009450513,-500.0,0.00022191,2]
[358372776,1745009450523,-500.0,0.00022191,2]
[358372777,1745009450533,-557.05919056,0.00022191,2]
[358372778,1745009450542,-693.0,0.00022191,2]
[358372779,1745009450553,-500.0,0.00022191,2]
[358372780,1745009450562,-500.0,0.00022191,2]
[358372781,1745009450572,-500.0,0.00022191,2]
[358372782,1745009450581,-500.0,0.00022191,2]
[358372783,1745009450591,-275.74253342,0.00022191,2]
[358372784,1745009450601,-500.0,0.00022191,2]
[358372785,1745009450611,-500.0,0.00022191,2]
[358372786,1745009450621,-500.0,0.00022191,2]
[358372787,1745009450630,-1465.89,0.00022191,2]
[358372788,1745009450640,-500.0,0.00022191,2]
[358372789,1745009450650,-500.0,0.00022191,2]
[358372790,1745009450659,-500.0,0.00022191,2]
[358372791,1745009450669,-500.0,0.00022191,2]
[358372792,1745009450679,-247.4,0.00022191,2]
[358372793,1745009450689,-500.0,0.00022191,2]
[358372794,1745009450699,-500.0,0.00022191,2]
[358372795,1745009450709,-500.0,0.00022191,2]
[358372796,1745009450718,-534.87,0.00022191,2]
[358372797,1745009450728,-3164.97,0.00022191,2]
[358372798,1745009450738,-500.0,0.00022191,2]
[358372799,1745009450749,-500.0,0.00022191,2]
[358372800,1745009450759,-500.0,0.00022191,2]
[358372801,1745009450769,-790.87,0.00022191,2]
[358372802,1745009450778,-500.0,0.00022191,2]
[358372803,1745009450788,-1021.07,0.00022191,2]
[358372804,1745009450798,-500.0,0.00022191,2]
[358372805,1745009450807,-501.9575996,0.00022191,2]
[358372806,1745009450817,-500.0,0.00022191,2]
[358372807,1745009450826,-607.69,0.00022191,2]
[358372808,1745009450836,-500.0,0.00022191,2]
[358372809,1745009450845,-500.0,0.00022191,2]
[358372810,1745009450855,-513.38629614,0.00022191,2]
[358372811,1745009450864,-500.0,0.00022191,2]
[358372812,1745009450874,-500.0,0.00022191,2]
[358372813,1745009450887,-413.94417553,0.00022191,2]
[358372814,1745009450896,-740.29,0.00022191,2]
[358372815,1745009450906,-500.0,0.00022191,2]
[358372816,1745009450915,-500.0,0.00022191,2]
[358372817,1745009450925,-500.0,0.00022191,2]
[358372818,1745009450935,-500.0,0.00022191,2]
[358372819,1745009450945,-649.56,0.00022191,2]
[358372820,1745009450955,-592.11,0.00022191,2]
[358372821,1745009450964,-331.78,0.00022191,2]
[358372822,1745009450974,-500.0,0.00022191,2]
[358372823,1745009450984,-507.44622628,0.00022191,2]
[358372824,1745009450993,-604.61,0.00022191,2]
[358372825,1745009451003,-505.51,0.00022191,2]
[358372826,1745009451013,-809.251221,0.00022191,7]
[358372827,1745009451023,-500.0,0.00022191,2]
[358372828,1745009451032,-572.51,0.00022191,2]
[358372829,1745009451160,-460.437241,0.00022191,2]
[358372830,1745009451171,-501.73232647,0.00022191,2]
[358372831,1745009451181,-500.0,0.00022191,2]
[358372832,1745009451191,-500.0,0.00022191,2]
[358372833,1745009451200,-500.0,0.00022191,2]
[358372834,1745009451210,-500.0,0.00022191,2]
[358372835,1745009451219,-542.63276487,0.00022191,2]
[358372836,1745009451229,-658.59,0.00022191,2]
[358372837,1745009451238,-797.86,0.00022191,2]
[358372838,1745009451247,-500.0,0.00022191,2]
[358372839,1745009451257,-500.0,0.00022191,2]
[358372840,1745009451266,-1407.56,0.00022191,2]
[358372841,1745009451275,-500.0,0.00022191,2]
[358372842,1745009451284,-641.26,0.00022191,2]
[358372843,1745009451293,-500.0,0.00022191,2]
[358372844,1745009451303,-695.13,0.00022191,2]
[358372845,1745009451312,-500.0,0.00022191,2]
[358372846,1745009451321,-1771.28,0.00022191,2]
[358372847,1745009451331,-500.0,0.00022191,2]
[358372848,1745009451340,-500.0,0.00022191,2]
[358372849,1745009451349,-500.0,0.00022191,2]
[358372850,1745009451359,-928.93,0.00022191,2]
[358372851,1745009451369,-763.31,0.00022191,2]
[358372852,1745009451378,-732.13,0.00022191,2]
[358372853,1745009451387,-590.02,0.00022191,2]
[358372854,1745009451396,-1238.23,0.00022191,2]
[358372855,1745009451406,-1103.61,0.00022191,2]
[358372856,1745009451415,-500.0,0.00022191,2]
[358372857,1745009451424,-303.07540814,0.00022191,2]
[358372858,1745009451433,-1459.07,0.00022191,2]
[358372859,1745009451443,-703.26,0.00022191,2]
[358372860,1745009451452,-883.88,0.00022191,2]
[358372861,1745009451462,-500.0,0.00022191,2]
[358372862,1745009451471,-500.0,0.00022191,2]
[358372863,1745009451481,-4355.55,0.00022191,2]
[358372864,1745009451490,-801.44,0.00022191,2]
[358372865,1745009451500,-500.0,0.00022191,2]
[358372866,1745009451509,-500.0,0.00022191,2]
[358372867,1745009451518,-616.51,0.00022191,2]
[358372868,1745009451528,-506.21893038,0.00022191,2]
[358372869,1745009451537,-1000.0,0.00022191,2]
[358372870,1745009451547,-500.0,0.00022191,2]
[358372871,1745009451556,-500.0,0.00022191,2]
[358372872,1745009451566,-500.0,0.00022191,2]
[358372873,1745009451575,-500.0,0.00022191,2]
[358372874,1745009451584,-833.57,0.00022191,2]
[358372875,1745009451593,-500.0,0.00022191,2]
[358372876,1745009451602,-500.0,0.00022191,2]
[358372877,1745009451612,-500.0,0.00022191,2]
[358372878,1745009451621,-567.64,0.00022191,2]
[358372879,1745009451631,-843.0,0.00022191,2]
[358372880,1745009451641,-593.64,0.00022191,2]
[358372881,1745009451651,-500.0,0.00022191,2]
[358372882,1745009451661,-500.0,0.00022191,2]
[358372883,1745009451670,-500.0,0.00022191,2]
[358372884,1745009451680,-500.0,0.00022191,2]
[358372885,1745009451689,-1247.67,0.00022191,2]
[358372886,1745009451699,-910.6,0.00022191,2]
[358372887,1745009451708,-500.0,0.00022191,2]
[358372888,1745009451719,-500.0,0.00022191,2]
[358372889,1745009451729,-500.0,0.00022191,2]
[358372890,1745009451738,-500.0,0.00022191,2]
[358372891,1745009451748,-500.0,0.00022191,2]
[358372892,1745009451758,-500.0,0.00022191,2]
[358372893,1745009451768,-534.71,0.00022191,2]
[358372894,1745009451778,-500.0,0.00022191,2]
[358372895,1745009451787,-586.84042679,0.00022191,2]
[358372896,1745009451798,-530.68,0.00022191,2]
[358372897,1745009451809,-894.03,0.00022191,2]
[358372898,1745009451819,-500.0,0.00022191,2]
[358372899,1745009451828,-500.0,0.00022191,2]
[358372900,1745009451838,-804.16,0.00022191,2]
[358372901,1745009451848,-682.89,0.00022191,2]
[358372902,1745009451857,-500.0,0.00022191,2]
[358372903,1745009451867,-500.0,0.00022191,2]
[358372904,1745009451878,-500.0,0.00022191,2]
[358372905,1745009451890,-500.0,0.00022191,2]
[358372906,1745009451899,-1348.03,0.00022191,2]
[358372907,1745009451909,-500.0,0.00022191,2]
[358372908,1745009451919,-500.0,0.00022191,2]
[358372909,1745009451928,-500.0,0.00022191,2]
[358372910,1745009451939,-665.46,0.00022191,2]
[358372911,1745009451948,-1057.16,0.00022191,2]
[358372912,1745009451960,-500.0,0.00022191,2]
[358372913,1745009451969,-500.0,0.00022191,2]
[358372914,1745009451979,-500.0,0.00022191,2]
[358372915,1745009451989,-617.94,0.00022191,2]
[358372916,1745009451998,-1358.09,0.00022191,2]
[358372917,1745009452008,-500.0,0.00022191,2]
[358372918,1745009452017,-696.13,0.00022191,2]
[358372919,1745009452026,-500.0,0.00022191,2]
[358372920,1745009452036,-500.0,0.00022191,2]
[358372921,1745009452046,-500.0,0.00022191,2]
[358372922,1745009452055,-500.0,0.00022191,2]
[358372923,1745009452064,-500.0,0.00022191,2]
[358372924,1745009452074,-500.0,0.00022191,2]
[358372925,1745009452083,-500.0,0.00022191,2]
[358372926,1745009452094,-845.13,0.00022191,2]
[358372927,1745009452103,-500.0,0.00022191,2]
[358372928,1745009452113,-500.0,0.00022191,2]
[358372929,1745009452122,-500.0,0.00022191,2]
[358372930,1745009452132,-790.83,0.00022191,2]
[358372931,1745009452142,-500.0,0.00022191,2]
[358372932,1745009452152,-500.0,0.00022191,2]
[358372933,1745009452161,-525.03,0.00022191,2]
[358372934,1745009452171,-500.0,0.00022191,2]
[358372935,1745009452181,-1310.67,0.00022191,2]
[358372936,1745009452190,-500.0,0.00022191,2]
[358372937,1745009452199,-500.0,0.00022191,2]
[358372938,1745009452209,-500.0,0.00022191,2]
[358372939,1745009452219,-500.0,0.00022191,2]
[358372940,1745009452228,-500.0,0.00022191,2]
[358372941,1745009452237,-500.0,0.00022191,2]
[358372942,1745009452247,-500.0,0.00022191,2]
[358372943,1745009452256,-500.0,0.00022191,2]
[358372944,1745009452266,-839.29847495,0.00022191,7]
[358372945,1745009452275,-743.12,0.00022191,2]
[358372946,1745009452285,-500.0,0.00022191,2]
[358372947,1745009452294,-500.0,0.00022191,2]
[358372948,1745009452303,-561.56,0.00022191,2]
[358372949,1745009452313,-1295.06,0.00022191,2]
[358372950,1745009452323,-1024.06,0.00022191,2]
[358372951,1745009452332,-500.0,0.00022191,2]
[358372952,1745009452343,-500.0,0.00022191,2]
[358372953,1745009452352,-500.0,0.00022191,2]
[358372954,1745009452361,-160.648712,0.00022191,7]
[358372955,1745009452371,-1750.83,0.00022191,2]
[358372956,1745009452380,-1694.87,0.00022191,2]
[358372957,1745009452389,-500.0,0.00022191,2]
[358372958,1745009452398,-500.0,0.00022191,2]
[358372959,1745009452408,-500.0,0.00022191,2]
[358372960,1745009452417,-1280.18,0.00022191,2]
[358372961,1745009452426,-500.0,0.00022191,2]
[358372962,1745009452435,-500.0,0.00022191,2]
[358372963,1745009452445,-174.30061725,0.00022191,2]
[358372964,1745009452454,-562.14,0.00022191,2]
[358372965,1745009452463,-500.0,0.00022191,2]
[358372966,1745009452473,-500.0,0.00022191,2]
[358372967,1745009452483,-1115.86,0.00022191,2]
[358372968,1745009452492,-500.0,0.00022191,2]
[358372969,1745009452502,-1405.6,0.00022191,2]
[358372970,1745009452512,-500.0,0.00022191,2]
[358372971,1745009452521,-564.81,0.00022191,2]
[358372972,1745009452531,-738.22,0.00022191,2]
[358372973,1745009452540,-500.0,0.00022191,2]
[358372974,1745009452550,-500.0,0.00022191,2]
[358372975,1745009452559,-732.94,0.00022191,2]
[358372976,1745009452569,-500.0,0.00022191,2]
[358372977,1745009452578,-1302.91,0.00022191,2]
[358372978,1745009452587,-500.0,0.00022191,2]
[358372979,1745009452597,-500.0,0.00022191,2]
[358372980,1745009452607,-544.18,0.00022191,2]
[358372981,1745009452616,-804.47,0.00022191,2]
[358372982,1745009452626,-500.0,0.00022191,2]
[358372983,1745009452635,-500.0,0.00022191,2]
[358372984,1745009452644,-500.0,0.00022191,2]
[358372985,1745009452654,-1005.27,0.00022191,2]
[358372986,1745009452664,-500.0,0.00022191,2]
[358372987,1745009452673,-500.0,0.00022191,2]
[358372988,1745009452683,-500.0,0.00022191,2]
[358372989,1745009452693,-641.99,0.00022191,2]
[358372990,1745009452702,-238.16,0.00022191,2]
[358372991,1745009452712,-501.46667303,0.00022191,2]
[358372992,1745009452722,-500.0,0.00022191,2]
[358372993,1745009452732,-972.87,0.00022191,2]
[358372994,1745009452741,-500.0,0.00022191,2]
[358372995,1745009452751,-500.0,0.00022191,2]
[358372996,1745009452762,-500.0,0.00022191,2]
[358372997,1745009452772,-12567.49,0.00022191,2]
[358372998,1745009452781,-500.0,0.00022191,2]
[358372999,1745009452791,-500.0,0.00022191,2]
[358373000,1745009452800,-500.0,0.00022191,2]
[358373001,1745009452809,-525.72488201,0.00022191,2]
[358373002,1745009452819,-500.0,0.00022191,2]
[358373003,1745009452829,-2516.32,0.00022191,2]
[358373004,1745009452839,-500.0,0.00022191,2]
[358373005,1745009452848,-652.4,0.00022191,2]
[358373006,1745009452858,-500.0,0.00022191,2]
[358373007,1745009452868,-3317.01,0.00022191,2]
[358373008,1745009452878,-472.08511275,0.00022191,2]
[358373009,1745009452890,-500.0,0.00022191,2]
[358373010,1745009452899,-991.85,0.00022191,2]
[358373011,1745009452909,-3986.83,0.00022191,2]
[358373012,1745009452918,-1179.52,0.00022191,2]
[358373013,1745009452928,-500.0,0.00022191,2]
[358373014,1745009452937,-1998.18,0.00022191,2]
[358373015,1745009452947,-500.0,0.00022191,2]
[358373016,1745009452957,-1345.97,0.00022191,2]
[358373017,1745009452966,-697.27,0.00022191,2]
[358373018,1745009452976,-500.0,0.00022191,2]
[358373019,1745009452987,-500.0,0.00022191,2]
[358373020,1745009452996,-500.0,0.00022191,2]
[358373021,1745009453006,-500.0,0.00022191,2]
[358373022,1745009453016,-500.0,0.00022191,2]
[358373023,1745009453025,-500.0,0.00022191,2]
[358373024,1745009453035,-500.0,0.00022191,2]
[358373025,1745009453044,-500.0,0.00022191,2]
[358373026,1745009453053,-500.0,0.00022191,2]
[358373027,1745009453063,-1061.42,0.00022191,2]
[358373028,1745009453073,-500.0,0.00022191,2]
[358373029,1745009453082,-500.0,0.00022191,2]
[358373030,1745009453091,-500.0,0.00022191,2]
[358373031,1745009453100,-852.56,0.00022191,2]
[358373032,1745009453110,-500.0,0.00022191,2]
[358373033,1745009453119,-500.0,0.00022191,2]
[358373034,1745009453129,-504.00668701,0.00022191,2]
[358373035,1745009453139,-500.0,0.00022191,2]
[358373036,1745009453148,-500.0,0.00022191,2]
[358373037,1745009453159,-2519.52,0.00022191,2]
[358373038,1745009453168,-1332.28,0.00022191,2]
[358373039,1745009453178,-285.19106242,0.00022191,2]
[358373040,1745009453188,-647.68,0.00022191,2]
[358373041,1745009453197,-500.0,0.00022191,2]
[358373042,1745009453207,-635.97,0.00022191,2]
[358373043,1745009453218,-1358.94,0.00022191,2]
[358373044,1745009453344,-551.69,0.00022191,2]
[358373045,1745009453356,-500.0,0.00022191,2]
[358373046,1745009453366,-500.0,0.00022191,2]
[358373047,1745009453376,-500.0,0.00022191,2]
[358373048,1745009453386,-699.03,0.00022191,2]
[358373049,1745009453396,-500.0,0.00022191,2]
[358373050,1745009453406,-1128.65,0.00022191,2]
[358373051,1745009453416,-500.0,0.00022191,2]
[358373052,1745009453426,-500.0,0.00022191,2]
[358373053,1745009453436,-944.0,0.00022191,2]
[358373054,1745009453445,-500.0,0.00022191,2]
[358373055,1745009453456,-500.0,0.00022191,2]
[358373056,1745009453465,-500.0,0.00022191,2]
[358373057,1745009453475,-500.0,0.00022191,2]
[358373058,1745009453484,-500.0,0.00022191,2]
[358373059,1745009453493,-500.0,0.00022191,2]
[358373060,1745009453503,-3156.97,0.00022191,2]
[358373061,1745009453512,-7602.4,0.00022191,2]
[358373062,1745009453522,-500.0,0.00022191,2]
[358373063,1745009453531,-322.7349726,0.00022191,2]
[358373064,1745009453541,-500.0,0.00022191,2]
[358373065,1745009453550,-791.57,0.00022191,2]
[358373066,1745009453560,-503.14575811,0.00022191,2]
[358373067,1745009453569,-750.55,0.00022191,2]
[358373068,1745009453579,-500.0,0.00022191,2]
[358373069,1745009453589,-500.0,0.00022191,2]
[358373070,1745009453599,-500.0,0.00022191,2]
[358373071,1745009453608,-500.0,0.00022191,2]
[358373072,1745009453618,-500.0,0.00022191,2]
[358373073,1745009453627,-500.0,0.00022191,2]
[358373074,1745009453637,-500.0,0.00022191,2]
[358373075,1745009453646,-500.0,0.00022191,2]
[358373076,1745009453655,-500.0,0.00022191,2]
[358373077,1745009453664,-362.14455434,0.00022191,2]
[358373078,1745009453674,-1130.17,0.00022191,2]
[358373079,1745009453683,-587.65,0.00022191,2]
[358373080,1745009453693,-8286.27,0.00022191,2]
[358373081,1745009453703,-500.0,0.00022191,2]
[358373082,1745009453712,-500.0,0.00022191,2]
[358373083,1745009453722,-549.79,0.00022191,2]
[358373084,1745009453732,-1703.93,0.00022191,2]
[358373085,1745009453742,-500.0,0.00022191,2]
[358373086,1745009453751,-500.0,0.00022191,2]
[358373087,1745009453761,-500.00886348,0.00022191,2]
[358373088,1745009453771,-26835.23,0.00022191,2]
[358373089,1745009453780,-500.0,0.00022191,2]
[358373090,1745009453789,-500.0,0.00022191,2]
[358373091,1745009453799,-512.57,0.00022191,2]